Cogmind - Beta 12 @@@ ROGUE MODE // 2023.04.03 @ 19:01:13 Player: ArabianSandBoa Result: Destroyed by G-47 Trooper with Particle Gun Performance ------------- Evolutions (2) 1000 Regions Visited (7) 1400 Robots Destroyed (148) 740 Value Destroyed (5802) 5802 Prototype IDs (28) 560 Alien Tech Used (0) 0 Bonus (2626) 2626 TOTAL SCORE: 12128 Bonus ------- Triggered High Security 500 High Alert Combat Kills 2150 Follower Combat Kills 142 Entered Garrisons 200 Used RIF Installer 500 Aligned with FarCom 300 Friendly Fire -1166 Cogmind --------- Core Integrity 0/550 Matter 270/300 Energy 100/100 System Corruption 16% Temperature Cool (11) Movement Flying (40) Location -8/Materials Parts ------- > --- POWER (1) -------- (None) > --- PROPULSION (4) --- Nuclear Pulse Array > --- UTILITY (4) ------ Relay Coupler [NC] (19) Relay Coupler [Swarmer] (56) Relay Coupler [Brawler] (36) Relay Coupler [Sentry] (9) > --- WEAPON (2) ------- KE Penetrator Lance > --- INVENTORY (5) ---- System Shield Relay Coupler [Swarmer] (48) Field Lobotomy Kit (5) Longsword +1 Peak State ------------ > --- POWER ------------ Micro Nuclear Core > --- PROPULSION ------- Heavy Treads Nuclear Pulse Array > --- UTILITY ---------- Advanced Heat Sink Humpback Hacking Suite > --- WEAPON ----------- Improved Spread Laser Wave Gun > --- INVENTORY -------- Micro Nuclear Core Weight Redist. System Improved Utility Shielding Hardened Medium Armor Plating Hacking Suite Hacking Suite System Shield System Shield Relay Coupler [NC] Relay Coupler [NC] Relay Coupler [Swarmer] Relay Coupler [Swarmer] Relay Coupler [Cutter] Relay Coupler [Grunt] Relay Coupler [Grunt] Relay Coupler [Grunt] Relay Coupler [Grunt] Relay Coupler [Grunt] Relay Coupler [Brawler] Relay Coupler [Brawler] Relay Coupler [Brawler] Relay Coupler [Duelist] Relay Coupler [Sentry] Relay Coupler [Sentry] Relay Coupler [Hunter] Relay Coupler [Hunter] Relay Coupler [Behemoth] System Restoration Module EM Pulse Cannon KE Penetrator Missile Launcher Remote Datajack Field Lobotomy Kit Longsword +1 Lance [Rating: 62] Favorites ----------- Power Light Nuclear Core Engine Light Ion Engine Power Core Light Nuclear Core Propulsion Wheel Treads Heavy Treads Leg Aluminum Leg Wheel Wheel Hover Unit Gyrokinetic Inverter Flight Unit Nuclear Pulse Array Utility Humpback Device Advanced Heat Sink Storage Humpback Processor Advanced Targeting Computer Hackware Hacking Suite Protection Hardened Medium Armor Plating Weapon Improved Spread Laser Energy Gun Improved Spread Laser Energy Cannon Advanced Beam Cannon Ballistic Gun Assault Rifle Ballistic Cannon Assault Cannon Launcher Missile Launcher Special Weapon Remote Datajack Slashing Weapon Katana Piercing Weapon Lance Build | -11 -10 -10 -10 -9 -8 -8 -8 ------- Run | Jun Mat Min Exi Min Mat Gar Mat Slots Evolved 4 | . . . . . 4 . . Power . | . . . . . . . . Propulsion 2 | . . . . . 2 . . Utility 2 | . . . . . 2 . . Weapon . | . . . . . . . . Parts Attached 99 | 3 . 4 3 . 28 25 36 Power 8 | . . 1 . . 2 3 2 Engine 4 | . . 1 . . 2 . 1 Core 4 | . . . . . . 3 1 Reactor . | . . . . . . . . Propulsion 33 | 2 . 2 2 . 9 5 13 Treads 7 | . . 2 . . . 1 4 Leg . | . . . . . . . . Wheel 22 | 2 . . 2 . 8 2 8 Hover 2 | . . . . . 1 1 . Flight 2 | . . . . . . 1 1 Utility 28 | 1 . . 1 . 8 8 10 Device 11 | 1 . . . . 4 5 1 Storage 2 | . . . 1 . . 1 . Processor 3 | . . . . . 3 . . Hackware 9 | . . . . . . 1 8 Protection 3 | . . . . . 1 1 1 Artifact . | . . . . . . . . Weapon 30 | . . 1 . . 9 9 11 Energy Gun 9 | . . . . . 4 5 . Energy Cannon 1 | . . . . . 1 . . Ballistic Gun 8 | . . 1 . . . . 7 Ballistic Cannon 3 | . . . . . 3 . . Launcher 2 | . . . . . . 1 1 Special Weapon 2 | . . . . . . . 2 Impact Weapon . | . . . . . . . . Slashing Weapon 4 | . . . . . 1 3 . Piercing Weapon 1 | . . . . . . . 1 Special Melee Weapon . | . . . . . . . . Unidentified Prototypes 5 | . . . . . 4 . 1 Parts Lost 32 | . . . . . 5 6 21 Power 5 | . . . . . 1 1 3 Propulsion 12 | . . . . . 3 4 5 Utility 8 | . . . . . . 1 7 Weapon 7 | . . . . . 1 . 6 Highest Loss Streak 13 | . . . . . 2 2 13 To Critical Strikes 2 | . . . . . . . 2 Average Slot Usage (%) 79 | . 100 100 92 85 81 75 74 Engine 3 | . 14 14 14 14 8 . . Core 5 | . . . . . . 8 7 Treads 6 | . . 24 10 . . 7 9 Wheel 16 | . 28 3 17 28 30 12 7 Flight 1 | . . . . . . 2 3 Device 8 | . 14 14 7 . 7 8 6 Storage 9 | . 14 14 13 14 9 9 7 Processor 3 | . . . . . 8 2 . Hackware 4 | . . . . . . 5 11 Energy Gun 11 | . . . . . 6 16 10 Ballistic Gun 4 | . 28 28 28 28 3 . 3 Ballistic Cannon 1 | . . . . . 6 . . Naked Turns . | . . . . . . . . Heaviest Build 226 | 12 12 13 207 207 221 224 226 Greatest Support 110 | 26 26 40 40 32 52 70 110 Greatest Overweight (x) 22 | . . . 6 6 8 11 22 Average Overweight (x) 3 | . . . 2 6 4 5 2 Largest Inventory Capacity 35 | 8 8 8 35 35 35 35 35 Average Capacity 32 | 8 8 8 19 35 35 35 28 Most Carried 35 | 8 8 8 13 16 35 35 35 Average Carried 27 | 6 8 7 9 14 28 31 27 Final Capacity 35 | 8 8 8 35 35 35 35 5 Final Carried 35 | 8 8 8 13 16 35 35 4 Class Distribution -------------------- 68% | Hauler-Mutant 22% | Bothacker-Mutant 8% | Mutant Dominant Class ---------------- Mutant | -10/Mines Mutant | -10/Exiles Hauler-Mutant | -9/Mines Hauler-Mutant | -8/Materials Hauler-Mutant | -8/Garrison Bothacker-Mutant | -8/Materials Resources | -11 -10 -10 -10 -9 -8 -8 -8 ----------- Run | Jun Mat Min Exi Min Mat Gar Mat Matter Collected 2763 | 219 . 245 60 . 1199 336 704 Remotely . | . . . . . . . . Salvage Created 4562 | 91 . 422 . . 1694 938 1417 Parts 251 | 9 . 16 . . 106 55 65 Haulers Intercepted 4 | . . . . . 3 . 1 Recyclers Shooed 3 | . . . . . 2 . 1 Parts Field Recycled . | . . . . . . . . Retrieved Matter . | . . . . . . . . Parts Self-Destructed . | . . . . . . . . Prevented . | . . . . . . . . Kills | -11 -10 -10 -10 -9 -8 -8 -8 ------- Run | Jun Mat Min Exi Min Mat Gar Mat Combat Hostiles Destroyed 100 | . . 5 . . 34 32 29 Melee 1 | . . . . . . 1 . Guns 68 | . . 5 . . 16 31 16 Cannons 18 | . . . . . 18 . . AOE 13 | . . . . . . . 13 Classes Destroyed 16 | 2 . 2 . . 10 1 1 Worker 12 | . . . . . 10 . 2 Builder 6 | . . . . . 3 . 3 Tunneler 3 | 1 . . . . 1 . 1 Hauler 4 | . . . . . 3 . 1 Recycler 11 | 1 . 2 . . 4 . 4 Mechanic 3 | . . . . . 1 . 2 Operator 3 | . . . . . 3 . . Watcher 5 | . . . . . 2 . 3 Swarmer 19 | . . 3 . . 3 11 2 Grunt 50 | . . 2 . . 19 13 16 Brawler 6 | . . . . . 2 . 4 Duelist 7 | . . . . . 2 3 2 Protector 3 | . . . . . . . 3 Sentry 9 | . . . . . 7 . 2 Hunter 2 | . . . . . 1 1 . Programmer 4 | . . . . . . 4 . Best Kill Streak 20 | 2 . 4 . . 7 9 20 Combat Bots Only 18 | . . 3 . . 6 9 18 Max Kills in Single Turn 4 | 1 . 1 . . 2 3 4 Gunslinging 1 | . . . . . . 1 1 Exploded 3 | . . . . . . . 3 Melee 1 | . . . . . . 1 . Uniques/NPCs Destroyed 1 | . . 1 . . . . . YI-UF0 (-10/Mines) Combat | -11 -10 -10 -10 -9 -8 -8 -8 -------- Run | Jun Mat Min Exi Min Mat Gar Mat Damage Taken 4127 | . . 202 . . 1198 987 1740 Core 591 | . . 27 . . 155 170 239 Absorbed by Shields . | . . . . . . . . Reduced by Siege Mode 59 | . . . . . . . 59 Core Remaining (%) 94 | 100 . . . 89 . . . Volleys Fired 307 | 2 . 34 . . 125 54 92 Largest 2 | 2 . 2 . . 2 2 2 Hottest 156 | 40 . 40 . . 150 156 156 Shots Fired 558 | 4 . 68 . . 246 105 135 Gun 375 | 4 . 68 . . 101 104 98 Cannon 145 | . . . . . 145 . . Launcher 10 | . . . . . . 1 9 Special 28 | . . . . . . . 28 Kinetic 240 | 4 . 68 . . 140 . 28 Thermal 280 | . . . . . 106 104 70 Explosive 10 | . . . . . . 1 9 Electromagnetic . | . . . . . . . . Robot Hit Streak 25 | 3 . 7 . . 25 19 17 Robot Miss Streak 9 | . . 3 . . 5 9 7 Penetration Max 1 | . . . . . . . 1 Secondary Targets 6 | . . . . . . 3 3 Max Gunslinging Chain 1 | . . . . . . 1 1 Shots Hit Robots 423 | 3 . 43 . . 179 83 115 Core Hits 416 | 3 . 17 . . 161 118 117 Critical Kills . | . . . . . . . . Critical Parts Destroyed . | . . . . . . . . Critical Strikes 3 | . . . . . 1 1 1 Burn 1 | . . . . . . 1 . Destroy 1 | . . . . . . . 1 Blast 1 | . . . . . 1 . . Melee Attacks 24 | . . . . . 3 12 9 Impact . | . . . . . . . . Slashing 15 | . . . . . 3 12 . Piercing 9 | . . . . . . . 9 Sneak Attacks . | . . . . . . . . Combat Hostiles . | . . . . . . . . Follow-up Attacks . | . . . . . . . . Damage Inflicted 10865 | 32 . 496 . . 4391 1936 4010 Guns 5794 | 32 . 496 . . 1634 1904 1728 Cannons 2757 | . . . . . 2757 . . Explosions 2146 | . . . . . . . 2146 Melee 168 | . . . . . . 32 136 Ramming . | . . . . . . . . Kinetic 3619 | 32 . 496 . . 2576 . 515 Thermal 5075 | . . . . . 1815 1904 1356 Explosive 2003 | . . . . . . . 2003 Electromagnetic . | . . . . . . . . Impact . | . . . . . . . . Slashing 32 | . . . . . . 32 . Piercing 136 | . . . . . . . 136 Highest Corruption 16 | . . . . . 1 1 16 Average Corruption 2 | . . . . . 1 1 14 Corruption Purged 1 | . . . . . . 1 . Corruption Blocked . | . . . . . . . . Effects 69 | . . . . . 16 28 25 Message Errors 15 | . . . . . 7 4 4 Matter Fused 22 | . . . . . 3 12 7 Heat Flow Errors 6 | . . . . . . 3 3 Energy Discharges 9 | . . . . . 3 4 2 Parts Rejected 2 | . . . . . . 1 1 Parts Fused 1 | . . . . . 1 . . Data Loss (minor) 7 | . . . . . . 3 4 Data Loss (major) 1 | . . . . . 1 . . Misfires 2 | . . . . . . 1 1 Alerts 1 | . . . . . 1 . . Misdirections 2 | . . . . . . . 2 Weapon Failures 1 | . . . . . . . 1 Overload Shots . | . . . . . . . . Overflow Damage 126 | . . . . . 57 . 69 Projectiles 57 | . . . . . 57 . . Explosions 52 | . . . . . . . 52 Melee 17 | . . . . . . . 17 Knockbacks 26 | . . . . . 26 . . Impact . | . . . . . . . . Kinetic 24 | . . . . . 24 . . Secondary 2 | . . . . . 2 . . Self-Inflicted Damage 147 | . . . . . . 59 88 Shots 2 | . . . . . . 1 1 Rammed . | . . . . . . . . Targets Rammed . | . . . . . . . . Kicked . | . . . . . . . . Crushed . | . . . . . . . . Highest Temperature 372 | . . 2 . . 255 185 372 Average Temperature 75 | . . 2 . . 59 48 110 Received Heat Transfer 1668 | . . 66 . . 585 288 729 Effects 1 | . . . . . 1 . . Interference 1 | . . . . . 1 . . Siege Activations 4 | . . . . . . 2 2 Total Turns 82 | . . . . . . 24 58 Longest Duration 46 | . . . . . . 13 46 Robots Corrupted . | . . . . . . . . Combat Hostiles . | . . . . . . . . Parts Fried . | . . . . . . . . Impact Corruptions . | . . . . . . . . Robots Melted . | . . . . . . . . Combat Hostiles . | . . . . . . . . Parts Melted 5 | . . . . . 2 . 3 Heat Transferred 4871 | . . . . . 1783 1759 1329 Parts Sabotaged . | . . . . . . . . Parts Stolen . | . . . . . . . . Parts Stripped . | . . . . . . . . Power Chain Reactions . | . . . . . . . . Missiles Intercepted . | . . . . . . . . Alert | -11 -10 -10 -10 -9 -8 -8 -8 ------- Run | Jun Mat Min Exi Min Mat Gar Mat Peak Influence 3822 | 10 18 166 . . 795 3822 2578 Initial 1862 | . 6 6 . . . 516 1862 Average 1483 | 8 15 113 . . 327 2059 2048 Maximum Alert Level 5 | . . . . . 3 5 5 Low Security (%) 14 | 100 100 100 . 100 33 . . Level 1 4 | . . . . . 19 . . Level 2 18 | . . . . . 45 12 . Level 3 6 | . . . . . 2 10 . Level 4 6 | . . . . . . 10 . Level 5 42 | . . . . . . 65 50 High Security 6 | . . . . . . . 49 Max Security . | . . . . . . . . Squads Dispatched 22 | . . . . . 7 . 15 Investigation 2 | . . . . . 2 . . Extermination . | . . . . . . . . Reinforcement 3 | . . . . . 3 . . Assault 15 | . . . . . . . 15 Garrison 2 | . . . . . 2 . . Intercept . | . . . . . . . . Searches Triggered . | . . . . . . . . Construction Impeded 1 | . . . . . 1 . . Haulers Reinforced . | . . . . . . . . Active Scanning Responses . | . . . . . . . . Cargo Convoy Interrupts . | . . . . . . . . Stealth | -11 -10 -10 -10 -9 -8 -8 -8 --------- Run | Jun Mat Min Exi Min Mat Gar Mat Distress Signals 8 | . . . . . 5 . 3 Communications Jammed . | . . . . . . . . Distress Signals . | . . . . . . . . Times Spotted 174 | . . 6 . . 41 30 97 Peak Tracking Total 22 | . . 3 . . 5 6 22 Tactical Retreats 9 | . . 1 . . 3 . 5 Traps | -11 -10 -10 -10 -9 -8 -8 -8 ------- Run | Jun Mat Min Exi Min Mat Gar Mat Traps Triggered 13 | . . . . . 1 12 . Indirectly . | . . . . . . . . Trap Hack Attempts . | . . . . . . . . Triggered . | . . . . . . . . Disarmed . | . . . . . . . . Reprogrammed . | . . . . . . . . Reused 1 | . . . . . . 1 . Traps Extracted . | . . . . . . . . Installed 1 | . . . . . . 1 . Triggered 1 | . . . . . . 1 . Most Traps Carried 8 | . . . . . . 8 . Machines | -11 -10 -10 -10 -9 -8 -8 -8 ---------- Run | Jun Mat Min Exi Min Mat Gar Mat Machines Disabled 20 | . . . . . 3 12 5 Max in Single Turn 2 | . . . . . 1 2 2 Garrison Relay 5 | . . . . . . 5 . Phase Generator 1 | . . . . . . 1 . Machines Repaired . | . . . . . . . . Machines Sabotaged . | . . . . . . . . Overloaded Fab Kills . | . . . . . . . . Hacking | -11 -10 -10 -10 -9 -8 -8 -8 --------- Run | Jun Mat Min Exi Min Mat Gar Mat Machines Accessed 16 | . 1 . 1 . 9 4 1 Terminals 12 | . 1 . . . 6 4 1 Fabricators . | . . . . . . . . Repair Stations . | . . . . . . . . Recycling Units 1 | . . . . . 1 . . Scanalyzers 1 | . . . . . 1 . . Garrison Access 1 | . . . . . 1 . . Total Hacks 53 | . 3 . 1 . 37 9 3 Successful 27 | . 2 . 1 . 19 4 1 Failed 25 | . 1 . . . 17 5 2 Catastrophic 5 | . . . . . 3 2 . Database Lockouts 1 | . . . . . 1 . . Manual 31 | . 2 . 1 . 24 1 3 Terminals 42 | . 3 . . . 27 9 3 Fabricators . | . . . . . . . . Repair Stations . | . . . . . . . . Recycling Units 5 | . . . . . 5 . . Scanalyzers 4 | . . . . . 4 . . Garrison Access 1 | . . . . . 1 . . Terminal Hacks 13 | . 1 . 1 . 8 3 . Robot Analysis 7 | . . . . . 7 . . Branch Access Points 2 | . 1 . . . 1 . . Emergency Access Points 1 | . . . . . . 1 . Garrison Registry 1 | . . . . . . 1 . Patrol Navigation 1 | . . . . . . 1 . EX-Prototype ID Bank 1 | . . . 1 . . . . Fabricator Hacks . | . . . . . . . . Repair Station Hacks . | . . . . . . . . Recycling Unit Hacks 1 | . . . . . 1 . . Report Inventory 1 | . . . . . 1 . . Scanalyzer 4 | . . . . . 4 . . Insert Component 2 | . . . . . 2 . . Analyze 2 | . . . . . 2 . . Garrison Access Hacks 1 | . . . . . 1 . . Unlock Access 1 | . . . . . 1 . . Unauthorized Hacks 8 | . 1 . . . 5 1 1 Terminals 8 | . 1 . . . 5 1 1 Botnet 7 | . 1 . . . 5 . 1 Override 1 | . . . . . . 1 . Fabricators . | . . . . . . . . Repair Stations . | . . . . . . . . Recycling Units . | . . . . . . . . Scanalyzers . | . . . . . . . . Garrison Access . | . . . . . . . . Data Cores Recovered 1 | . . . . . 1 . . Used . | . . . . . . . . Hacking Detections 13 | . 1 . . . 8 3 1 Full Trace Events 9 | . 1 . . . 5 2 1 Feedback Events 1 | . . . . . 1 . . Corruption 1 | . . . . . 1 . . Feedback Blocked . | . . . . . . . . Robot Schematics Acquired . | . . . . . . . . Robots Built . | . . . . . . . . Authchips . | . . . . . . . . Time . | . . . . . . . . Total Robot Build Rating . | . . . . . . . . Part Schematics Acquired 2 | . . . . . 2 . . Parts Built . | . . . . . . . . Authchips . | . . . . . . . . Time . | . . . . . . . . Total Part Build Rating . | . . . . . . . . Parts Repaired . | . . . . . . . . Time . | . . . . . . . . Parts Recycled . | . . . . . . . . Recycled Matter . | . . . . . . . . Retrieved Matter . | . . . . . . . . Retrieved Components . | . . . . . . . . Parts Scanalyzed 2 | . . . . . 2 . . Part Schematics Acquired 2 | . . . . . 2 . . Parts Damaged . | . . . . . . . . Bothacking | -11 -10 -10 -10 -9 -8 -8 -8 ------------ Run | Jun Mat Min Exi Min Mat Gar Mat Used RIF Installer 1 | . . . . . . 1 . Robots Hacked 20 | . . . . . . . 20 Non-combat 2 | . . . . . . . 2 Combat 18 | . . . . . . . 18 Robot Hacks Applied 24 | . . . . . . . 24 parse_system 1 | . . . . . . . 1 scatter_targeting 2 | . . . . . . . 2 spike_heat 1 | . . . . . . . 1 overwrite_iff 18 | . . . . . . . 18 formatsys_low 1 | . . . . . . . 1 formatsys_high 1 | . . . . . . . 1 Relay Couplers Released 21 | . . . . . . 21 . Machine Destruction 17 | . . . . . . 17 . Programmers 4 | . . . . . . 4 . Attached 8 | . . . . . . . 8 Fabnet Peak Effective % . | . . . . . . . . Robots Rewired . | . . . . . . . . Allies Hacked . | . . . . . . . . Hacks Repelled . | . . . . . . . . Allies | -11 -10 -10 -10 -9 -8 -8 -8 -------- Run | Jun Mat Min Exi Min Mat Gar Mat Total Allies 18 | . . . . . . . 18 Largest Group 4 | . . . . . . . 4 Highest-Rated Group 78 | . . . . . . . 78 Highest-Rated Ally 29 | . . . . . . . 29 Total Orders . | . . . . . . . . Ally Attacks 49 | . . . . . . . 49 Total Damage 897 | . . . . . . . 897 Kills 4 | . . . . . . . 4 Allies Corrupted 2 | . . . . . . . 2 Allies Melted 2 | . . . . . . . 2 Intel | -11 -10 -10 -10 -9 -8 -8 -8 ------- Run | Jun Mat Min Exi Min Mat Gar Mat Robot Analysis Total 7 | . . . . . 7 . . Derelict Logs Recovered . | . . . . . . . . Drone Launches . | . . . . . . . . Drone Recoveries . | . . . . . . . . Exploration | -11 -10 -10 -10 -9 -8 -8 -8 ------------- Run | Jun Mat Min Exi Min Mat Gar Mat Turns Passed 8950 | 61 16 382 518 68 2199 4669 1037 Spaces Moved 2992 | 42 16 139 312 31 941 1126 385 Core . | . . . . . . . . Treads 1008 | . . 121 122 . . 675 90 Legs 31 | 31 . . . . . . . Wheels 1732 | 11 16 18 190 31 941 451 74 Hover . | . . . . . . . . Flight 221 | . . . . . . . 221 Fastest Speed 40 | 90 90 90 100 190 145 145 40 Average Speed 217 | 114 90 150 155 190 160 320 150 Slowest Speed 410 | 120 90 160 190 190 210 400 410 Overloaded Moves . | . . . . . . . . Propulsion Burnouts . | . . . . . . . . Robots Hopped 1 | . . . . . . . 1 Cave-ins Triggered . | . . . . . . . . Exploration Rate (%) 40 | 3 5 31 69 11 61 98 44 Regions Visited 7 Branch Regions 3 Pre-discovered Areas . | . . . . . . . . Known Exits Taken 2 | . 1 . . . 1 . . Unknown Exits Taken 4 | 1 . 1 1 1 . . . Scrap Searched 1 | . . . . 1 . . . Spaces Dug 8 | . . . . . 1 1 6 Terrain Destroyed 319 | . . . . . 11 155 153 Melee 8 | . . . . . 1 1 6 Projectile 25 | . . . . . 10 . 15 AOE 286 | . . . . . . 154 132 Terrain Rammed . | . . . . . . . . Walls Destroyed . | . . . . . . . . Machines Disabled . | . . . . . . . . Actions | -11 -10 -10 -10 -9 -8 -8 -8 --------- Run | Jun Mat Min Exi Min Mat Gar Mat Total 4891 | 50 17 246 350 41 1387 2089 711 Wait 1206 | . . 60 15 8 211 756 156 Move 2984 | 41 15 138 311 30 941 1125 383 Hop 1 | . . . . . . . 1 Pick Up 118 | 2 1 5 10 3 44 45 8 Fast Attach 41 | 3 . . 3 . 12 3 20 Attach 21 | . . . . . 4 9 8 Detach 12 | . . . . . 5 1 6 Swap 37 | . . 4 . . 12 13 8 Drop 111 | 2 1 5 11 . 30 43 19 Fire 307 | 2 . 34 . . 125 54 92 Melee 24 | . . . . . 3 12 9 Ram . | . . . . . . . . Kick . | . . . . . . . . Crush . | . . . . . . . . Escape Stasis 27 | . . . . . . 27 . Rewire 1 | . . . . . . . 1 Trap 1 | . . . . . . 1 . Miscellaneous . | . . . . . . . . Route ------- -11/Junkyard -10/Materials (discovered 2 exits: *Min x2) -10/Mines (discovered 3 exits: [*Mat x2] / *Exi) -10/Exiles -9/Mines -8/Materials (discovered 3 exits: [*Fac x2] / Gar) -8/Garrison (discovered 3 exits: *Mat x3) -8/Materials (discovered 1 exit: [*Fac]) History --------- Turn | Location | Event 1 | -11/Junkyard | Discovered new exit (range 3) 62 | -11/Junkyard | Entered Materials 62 | -10/Materials | Discovered new exit (range 8) 66 | -10/Materials | Identified exit to Mines 78 | -10/Materials | Entered Mines 100 | -10/Mines | Discovered new exit (range 5) 223 | -10/Mines | Discovered new exit (range 9) 313 | -10/Mines | Build established: Mutant 339 | -10/Mines | YI-UF0 nonchalantly dropped a Grenade Launcher on the ground 398 | -10/Mines | Destroyed YI-UF0 454 | -10/Mines | Deemed a non-threat by the Exiles lab entrance 454 | -10/Mines | Discovered new exit (range 5) 460 | -10/Mines | Entered Exiles 500 | -10/Exiles | Met 8R-AWN 526 | -10/Exiles | Met EX-HEX 574 | -10/Exiles | Met EX-BIN 593 | -10/Exiles | Aligned with FarCom system 595 | -10/Exiles | Given EX-Vault access code 632 | -10/Exiles | Opened EX-Vault 659 | -10/Exiles | Found Field Lobotomy Kit 669 | -10/Exiles | Found YOLO Cannon 672 | -10/Exiles | Found Longsword +1 694 | -10/Exiles | Warned to stay clear of 0b10 Research branches 855 | -10/Exiles | Met EX-DEC 953 | -10/Exiles | Discovered new exit (range 14) 978 | -10/Exiles | Stole three prototypes: YOLO Cannon, Field Lobotomy Kit, Longsword +1 978 | -10/Exiles | Entered Mines 978 | -9/Mines | Discovered new exit (range 13) 1029 | -9/Mines | Received a Rocket Launcher from a helpful Derelict 1046 | -9/Mines | Entered Materials 1046 | -8/Materials | Evolved 4 slots: Propulsion x2, Utility x2 1057 | -8/Materials | Build established: Hauler-Mutant 2189 | -8/Materials | Central database locked down 2519 | -8/Materials | Discovered new exit (range 16) 3008 | -8/Materials | Discovered new exit (range 5) 3012 | -8/Materials | Garrison activated, responded to threat 3200 | -8/Materials | Garrison activated, responded to threat 3245 | -8/Materials | Identified exit to Garrison 3245 | -8/Materials | Entered Garrison 3796 | -8/Garrison | Phase Generator disabled 3839 | -8/Garrison | Identified exit to Materials 4067 | -8/Garrison | Garrison Relay disabled 4283 | -8/Garrison | Destroyed 9 combat bots 4640 | -8/Garrison | Garrison Relay disabled 4819 | -8/Garrison | Garrison Relay disabled 5399 | -8/Garrison | Core integrity fell below 50% 5579 | -8/Garrison | Triggered checkpoint 5801 | -8/Garrison | Garrison Relay disabled 6267 | -8/Garrison | Discovered exit to Materials (range 23) 6267 | -8/Garrison | Discovered exit to Materials (range 33) 6267 | -8/Garrison | Discovered exit to Materials (range 43) 6282 | -8/Garrison | Triggered checkpoint 6327 | -8/Garrison | Garrison Relay disabled 6521 | -8/Garrison | Installed Relay Interface Framework 7168 | -8/Garrison | Build established: Bothacker-Mutant 7914 | -8/Garrison | Entered Materials 8314 | -8/Materials | First assault squad dispatched 8420 | -8/Materials | System corruption reached 10% 8435 | -8/Materials | High security lockdown imminent 8450 | -8/Materials | Lost 5 parts (3n1u1w) 8515 | -8/Materials | High security lockdown engaged 8644 | -8/Materials | Core integrity fell below 20% 8676 | -8/Materials | Destroyed 18 combat bots 8779 | -8/Materials | Lost 13 parts (2p1n6u4w) 8922 | -8/Materials | Discovered new exit (range 12) 8951 | -8/Materials | Destroyed by G-47 Trooper with Particle Gun Last Messages --------------- 08884_ I-25 Savior unfolds itself. 08886_ Lgt. Nuclear Core destroyed. 08888_ System corrupted: Matter fused (-8). 08902_ Critical hit (Burn: +37). 08909_ O-24 Administrator sends out distress signal. 08909_ O-24 Administrator: "IFF HANDSHAKE FAILED. SECURING TERMINAL." 08910_ System corrupted: Component data lost. 08912_ Destroyed Lgt. Deuterium Engine. 08916_ Critical hit (Burn: +37). 08918_ Acquired Deuterium Engine. 08920_ Dropped Deuterium Engine. 08922_ EXIT=FOUND 08923_ Remote Datajack destroyed. 08925_ System corrupted: FCS attempts to trigger KE Penetrator. 08925_ System corrupted: KE Penetrator misfires. 08925_ Slug penetrates Nuclear Reactor. 08930_ Nuclear Reactor explodes. 08948_ The unstable cave ceiling collapses. 08948_ Y-45 Defender suffers critical hit (Burn). 08951_ The unstable cave ceiling collapses. Map ----- +----------------------------------------------------+ | | | | | | | | | | | | | | | | | | | | | | | | | | | | | | | | | | | | | ?????????????????????????????????????????????????? | | ?????????????????????????????????????????????????? | | ?????????????????????????????????????????????????? | | ????????????????????????#######??????????????????? | | ?????????????????????#### # ###????????????????? | | ????????????????????## ######???????????? | | ?????????????????#### ] ! #???????????? | | ??????????????# ! @ [#???????????? | | ??????????????# #???????????? | | ??????????????# """ """ #???????????? | | ??????????????# ! """ """ #########???? | | ????????????????? """ """ ## [ #???? | | ????????????????? # Y Y "" / #???? | | ??????????????####+## # g##Y#### #???? | | ??????????????# Y + #???? | | ??????????????# < ########## "T" #???? | | ??????????????# #????????# """ #???? | | ??????????????##### #####g##????????#######"#??? | | ??????????????????# # "T" C#???????????????##??? | | ??????????????????# ?# #???????????????????? | | ??????????????????+ ??+ #???????????????????? | | ??????????????????????# ! #???????????????????? | | ??????????????????????# * #???????????????????? | | ??????????????????#???# #???????????????????? | | ??????????????????# ??#####/##???????????????????? | | ??????????????????# ?????# #????????????????????? | | ??????????????????# ????# #????????????????????? | | ??????????????????# ##### ##???????????????????? | | ??????????????????# #???????????????????? | | ??????????????????+ +???????????????????? | | ??????????????????# #???????????????????? | | ??????????????????# #???????????????????? | +----------------------------------------------------+ Best States ------------- Heat Dissipation 62 Coolant Potential 50 Energy Generation 18 Energy Capacity 275 Matter Stores 300 Matter Capacity 300 Sight Range 20 Terrain Scan Density 10 Armor Coverage 450 Evasion (%) 62 Targeting Accuracy 8 Recoil Reduction 4 Offensive Hacking 10 Relay Coupler Types 4 Relay Coupler Value 133 Item Schematics ----------------- Humpback | -8/Materials | Scanalyzed Imp. Spread Laser | -8/Materials | Scanalyzed Robot Schematics ------------------ None Fabricated ------------ Nothing Alien Tech Used ----------------- None Achievements -------------- None Challenges ------------ None Game ------ Seed HelicalWeldingAutohacker Manual? 0 Play Time 00:58:09 Cumulative 527.2 hours Start 2023.04.03 @ 14:02:28 End 2023.04.03 @ 19:01:13 Sessions 1 Manual Loads 0 Difficulty Rogue Special Mode None Game No. 560 Rogue 560 Adventurer 0 Explorer 0 Win Type - Total 1 Types 1/0/0/0/0/0/0/0/0 Lore% 65 Gallery% 83 Achievement% 66 Wizard Run 0 Options --------- ASCII 0 Keyboard 0 Movement Mouse Keybinds 0 Fullscreen 2 Font 24/Smallcaps Map View 76x50 Tactical HUD 1 Map Filters NONE Filters NONE Steam 1 RUN: 59595369-fe71-420d-a866-3bcf51d7ae9b